[Event "FIDE Women World Blitz 2021"]
[Site "Warsaw"]
[Date "2021.12.30"]
[Round "15.13"]
[White "Maltsevskaya, Aleksandra"]
[Black "Mamedjarova, Zeinab"]
[Result "0-1"]
[ECO "C41"]
[WhiteElo "2411"]
[BlackElo "2249"]
[Annotator "NA"]
[PlyCount "77"]
[EventDate "2021.12.29"]
[EventType "swiss"]
[EventCountry "POL"]
[Tiebreak "Cut1 Buchholz"]
[SourceTitle "playchess.com"]
[Source "ChessBase"]
[SourceQuality "1"]
[TimeControl "180+2"]

1. e4 {[%emt 0:00:01]} e5 {[%emt 0:00:00]} 2. Nf3 {[%emt 0:00:01]} d6 {[%emt 0:
00:01]} 3. d4 {[%emt 0:00:07]} exd4 {[%emt 0:00:01]} 4. Nxd4 {[%emt 0:00:01]}
Nf6 {[%emt 0:00:01]} 5. Nc3 {[%emt 0:00:01]} Be7 {[%emt 0:00:01]} 6. g3 {
[%emt 0:00:07]} O-O {[%emt 0:00:01]} 7. Bg2 {[%emt 0:00:01]} c6 {[%emt 0:00:01]
} 8. O-O {[%emt 0:00:03]} a5 {[%emt 0:00:00]} 9. a4 {[%emt 0:00:09]} Na6 {
[%emt 0:00:01]} 10. Re1 {[%emt 0:00:02]} Re8 {[%emt 0:00:06]} 11. h3 {[%emt 0:
00:02]} Nc5 {[%emt 0:00:06]} 12. Bf4 {[%emt 0:00:13]} Bf8 {[%emt 0:00:05]} 13.
e5 {[%emt 0:00:29]} dxe5 {[%emt 0:00:06]} 14. Bxe5 {[%emt 0:00:04]} Bd7 {
[%emt 0:00:44]} 15. Qf3 {[%emt 0:00:05]} Nfe4 {[%emt 0:00:15]} 16. Bf4 {
[%emt 0:01:07]} Nxc3 {[%emt 0:00:11]} 17. Qxc3 {[%emt 0:00:01]} Ne6 {[%emt 0:
00:07]} 18. Nxe6 {[%emt 0:00:04]} Rxe6 {[%emt 0:00:05]} 19. Rad1 {[%emt 0:00:
07]} Bb4 {[%emt 0:00:10]} 20. Rxe6 {[%emt 0:00:12]} Bxc3 {[%emt 0:00:07]} 21.
Red6 {[%emt 0:00:01]} Bf6 {[%emt 0:00:49]} 22. Rxd7 {[%emt 0:00:01]} Qb6 {
[%emt 0:00:02]} 23. b3 {[%emt 0:00:11]} h5 {[%emt 0:00:03]} 24. Be3 {[%emt 0:
00:07]} Qb4 {[%emt 0:00:02]} 25. Bf3 {[%emt 0:00:01]} h4 {[%emt 0:00:04]} 26.
g4 {[%emt 0:00:02]} Re8 {[%emt 0:00:06]} 27. Kg2 {[%emt 0:00:18]} Qc3 {[%emt 0:
00:01]} 28. Bf4 {[%emt 0:00:13]} Qxc2 {[%emt 0:00:05]} 29. R1d2 {[%emt 0:00:01]
} Qxb3 {[%emt 0:00:02]} 30. g5 {[%emt 0:00:04]} Bc3 {[%emt 0:00:05]} 31. R2d3 {
[%emt 0:00:02]} Qc4 {[%emt 0:00:03]} 32. Be3 {[%emt 0:00:04]} b5 {[%emt 0:00:
07]} 33. axb5 {[%emt 0:00:01]} Kf8 {[%emt 0:00:23]} 34. bxc6 {[%emt 0:00:01]}
a4 {[%emt 0:00:01]} 35. c7 {[%emt 0:00:03]} a3 {[%emt 0:00:02]} 36. Rd8 {
[%emt 0:00:03]} Qxc7 {[%emt 0:00:02]} 37. Rxe8+ {[%emt 0:00:01]} Kxe8 {[%emt 0:
00:01]} 38. Bd5 {[%emt 0:00:03]} Bb2 {[%emt 0:00:02]} 39. Bb3 {[%emt 0:00:02]}
0-1

[Event "FIDE Women World Blitz 2021"]
[Site "Warsaw"]
[Date "2021.12.30"]
[Round "15.14"]
[White "Danielian, Elina"]
[Black "Paehtz, Elisabeth"]
[Result "0-1"]
[ECO "B07"]
[WhiteElo "2450"]
[BlackElo "2485"]
[Annotator "ChessBase"]
[PlyCount "80"]
[EventDate "2021.12.29"]
[EventType "swiss"]
[EventCountry "POL"]
[Tiebreak "Cut1 Buchholz"]
[SourceTitle "playchess.com"]
[Source "ChessBase"]
[SourceQuality "1"]
[TimeControl "180+2"]

1. Nf3 {[%emt 0:00:01]} g6 {[%emt 0:00:01]} 2. d4 {[%emt 0:00:08]} Bg7 {
[%emt 0:00:02]} 3. e4 {[%emt 0:00:15]} d6 {[%emt 0:00:01]} 4. c3 {[%emt 0:00:
03]} Nf6 {[%emt 0:00:03]} 5. Bd3 {[%emt 0:00:01]} Nc6 {[%emt 0:00:01]} 6. O-O {
[%emt 0:00:29]} O-O {[%emt 0:00:06]} 7. Bg5 {[%emt 0:00:11]} e5 {[%emt 0:00:02]
} 8. Nbd2 {[%emt 0:00:39]} h6 {[%emt 0:00:03]} 9. Bh4 {[%emt 0:00:04]} Qe8 {
[%emt 0:00:18]} 10. dxe5 {[%emt 0:00:08]} dxe5 {[%emt 0:00:01]} 11. Qc2 {
[%emt 0:00:08]} Nh5 {[%emt 0:00:03]} 12. Rfe1 {[%emt 0:00:03]} Be6 {[%emt 0:00:
11]} 13. a4 {[%emt 0:00:05]} f5 {[%emt 0:00:17]} 14. exf5 {[%emt 0:00:17]} gxf5
{[%emt 0:00:01]} 15. Bb5 {[%emt 0:00:15]} e4 {[%emt 0:00:01]} 16. Nd4 {[%emt 0:
00:34]} Nxd4 {[%emt 0:00:03]} 17. cxd4 {[%emt 0:00:01]} c6 {[%emt 0:00:01]} 18.
Bc4 {[%emt 0:00:01]} Bxd4 {[%emt 0:00:35]} 19. Nxe4 {[%emt 0:00:06]} Ng7 {
[%emt 0:00:28]} 20. Ng3 {[%emt 0:00:04]} Qg6 {[%emt 0:00:27]} 21. Bxe6+ {
[%emt 0:00:02]} Nxe6 {[%emt 0:00:01]} 22. Qc4 {[%emt 0:00:01]} Rae8 {[%emt 0:
00:10]} 23. Rxe6 {[%emt 0:00:05]} Qxe6 {[%emt 0:00:02]} 24. Qxd4 {[%emt 0:00:
01]} f4 {[%emt 0:00:00]} 25. Nf1 {[%emt 0:00:02]} Qg6 {[%emt 0:00:12]} 26. g3 {
[%emt 0:00:06]} Re4 {[%emt 0:00:07]} 27. Qd3 {[%emt 0:00:03]} fxg3 {[%emt 0:00:
03]} 28. Qb3+ {[%emt 0:00:01]} Rf7 {[%emt 0:00:05]} 29. Bxg3 {[%emt 0:00:01]}
h5 {[%emt 0:00:01]} 30. h4 {[%emt 0:00:03]} Rxh4 {[%emt 0:00:03]} 31. Rd1 {
[%emt 0:00:02]} Rg4 {[%emt 0:00:02]} 32. Rd8+ {[%emt 0:00:02]} Kh7 {[%emt 0:00:
01]} 33. Qc3 {[%emt 0:00:00]} Rg7 {[%emt 0:00:02]} 34. Kh2 {[%emt 0:00:02]} h4
{[%emt 0:00:01]} 35. Ne3 {[%emt 0:00:04]} hxg3+ {[%emt 0:00:01]} 36. fxg3 {
[%emt 0:00:01]} Qh5+ {[%emt 0:00:01]} 37. Kg2 {[%emt 0:00:01]} Rxg3+ {[%emt 0:
00:01]} 38. Kf2 {[%emt 0:00:00]} Qh2+ {[%emt 0:00:09]} 39. Ke1 {[%emt 0:00:02]}
Rg1+ {[%emt 0:00:04]} 40. Nf1 {[%emt 0:00:00]} Re7+ {[%emt 0:00:01]} 0-1

[Event "FIDE Women World Blitz 2021"]
[Site "Warsaw"]
[Date "2021.12.30"]
[Round "15.15"]
[White "Muzychuk, Mariya"]
[Black "Girya, Olga"]
[Result "0-1"]
[ECO "C47"]
[WhiteElo "2536"]
[BlackElo "2402"]
[Annotator "ChessBase"]
[PlyCount "104"]
[EventDate "2021.12.29"]
[EventType "swiss"]
[EventCountry "POL"]
[Tiebreak "Cut1 Buchholz"]
[SourceTitle "playchess.com"]
[Source "ChessBase"]
[SourceQuality "1"]
[TimeControl "180+2"]

1. e4 {[%emt 0:00:00]} e5 {[%emt 0:00:01]} 2. Nf3 {[%emt 0:00:01]} Nc6 {
[%emt 0:00:01]} 3. Nc3 {[%emt 0:00:01]} Nf6 {[%emt 0:00:01]} 4. d4 {[%emt 0:00:
00]} exd4 5. Nxd4 {[%emt 0:00:01]} Bb4 {[%emt 0:00:02]} 6. Nxc6 {[%emt 0:00:01]
} bxc6 {[%emt 0:00:02]} 7. Bd3 {[%emt 0:00:01]} O-O {[%emt 0:00:01]} 8. O-O {
[%emt 0:00:01]} d5 {[%emt 0:00:02]} 9. exd5 {[%emt 0:00:02]} cxd5 {[%emt 0:00:
00]} 10. h3 {[%emt 0:00:01]} c6 {[%emt 0:00:03]} 11. Qf3 {[%emt 0:00:02]} Bd6 {
[%emt 0:00:01]} 12. Bg5 {[%emt 0:00:06]} h6 {[%emt 0:00:14]} 13. Bxf6 Qxf6 {
[%emt 0:00:02]} 14. Qxf6 {[%emt 0:00:23]} gxf6 {[%emt 0:00:01]} 15. Ne2 {
[%emt 0:00:05]} c5 {[%emt 0:00:09]} 16. c4 {[%emt 0:00:22]} d4 {[%emt 0:00:05]}
17. Ng3 {[%emt 0:00:02]} Bxg3 {[%emt 0:00:26]} 18. fxg3 {[%emt 0:00:01]} Kg7 {
[%emt 0:00:02]} 19. Rae1 {[%emt 0:00:19]} Be6 {[%emt 0:00:16]} 20. Rf4 {
[%emt 0:00:03]} Rfe8 {[%emt 0:00:33]} 21. Ref1 {[%emt 0:00:05]} Rab8 {[%emt 0:
00:11]} 22. b3 {[%emt 0:00:01]} a5 {[%emt 0:00:06]} 23. Rxf6 {[%emt 0:00:40]}
a4 {[%emt 0:00:01]} 24. Bc2 {[%emt 0:00:01]} axb3 {[%emt 0:00:07]} 25. axb3 {
[%emt 0:00:01]} d3 {[%emt 0:00:26]} 26. Bxd3 {[%emt 0:00:08]} Rxb3 {[%emt 0:00:
01]} 27. R6f3 {[%emt 0:00:36]} Rxd3 {[%emt 0:00:24]} 28. Rxd3 {[%emt 0:00:02]}
Bxc4 {[%emt 0:00:00]} 29. Rc3 {[%emt 0:00:07]} Bxf1 {[%emt 0:00:03]} 30. Kxf1 {
[%emt 0:00:01]} Re5 {[%emt 0:00:05]} 31. Kf2 {[%emt 0:00:07]} Kf6 {[%emt 0:00:
01]} 32. Kf3 {[%emt 0:00:03]} Ke6 {[%emt 0:00:05]} 33. Kf4 {[%emt 0:00:01]} f6
{[%emt 0:00:10]} 34. g4 {[%emt 0:00:01]} Kd5 {[%emt 0:00:10]} 35. Rd3+ {
[%emt 0:00:02]} Kc6 {[%emt 0:00:01]} 36. Rd8 {[%emt 0:00:04]} c4 {[%emt 0:00:
03]} 37. Rf8 {[%emt 0:00:12]} Re6 {[%emt 0:00:04]} 38. Kf5 {[%emt 0:00:03]} Kd5
{[%emt 0:00:10]} 39. h4 {[%emt 0:00:19]} Rc6 {[%emt 0:00:03]} 40. Rd8+ {
[%emt 0:00:01]} Kc5 {[%emt 0:00:01]} 41. g5 {[%emt 0:00:02]} hxg5 {[%emt 0:00:
01]} 42. hxg5 {[%emt 0:00:01]} fxg5 {[%emt 0:00:01]} 43. Kxg5 {[%emt 0:00:00]}
c3 {[%emt 0:00:01]} 44. Rd1 {[%emt 0:00:01]} Kc4 {[%emt 0:00:03]} 45. g4 {
[%emt 0:00:01]} c2 {[%emt 0:00:02]} 46. Rc1 {[%emt 0:00:01]} Kd3 {[%emt 0:00:
02]} 47. Kh5 {[%emt 0:00:01]} Kd2 {[%emt 0:00:04]} 48. Rxc2+ {[%emt 0:00:09]}
Rxc2 {[%emt 0:00:03]} 49. g5 {[%emt 0:00:00]} Ke3 {[%emt 0:00:01]} 50. g6 {
[%emt 0:00:01]} Kf4 {[%emt 0:00:03]} 51. g7 {[%emt 0:00:01]} Kf5 {[%emt 0:00:
01]} 52. Kh6 {[%emt 0:00:02]} Rh2# {[%emt 0:00:01]} 0-1

[Event "FIDE Women World Blitz 2021"]
[Site "Warsaw"]
[Date "2021.12.30"]
[Round "15.16"]
[White "Berend, Elvira"]
[Black "Osmak, Yuliia"]
[Result "1/2-1/2"]
[ECO "A81"]
[WhiteElo "2328"]
[BlackElo "2198"]
[Annotator "NA"]
[PlyCount "104"]
[EventDate "2021.12.29"]
[EventType "swiss"]
[EventCountry "POL"]
[Tiebreak "Cut1 Buchholz"]
[SourceTitle "playchess.com"]
[Source "ChessBase"]
[SourceQuality "1"]
[TimeControl "180+2"]

1. d4 {[%emt 0:00:01]} f5 {[%emt 0:00:01]} 2. g3 {[%emt 0:00:03]} Nf6 {[%emt 0:
00:01]} 3. Bg2 {[%emt 0:00:02]} d6 {[%emt 0:00:02]} 4. c3 {[%emt 0:00:01]} Nc6
{[%emt 0:00:13]} 5. Nh3 {[%emt 0:00:03]} e5 {[%emt 0:00:24]} 6. d5 {[%emt 0:00:
07]} Nb8 {[%emt 0:00:20]} 7. c4 {[%emt 0:00:02]} Be7 {[%emt 0:00:07]} 8. Nc3 {
[%emt 0:00:02]} O-O {[%emt 0:00:06]} 9. O-O {[%emt 0:00:04]} a5 {[%emt 0:00:18]
} 10. e4 {[%emt 0:00:24]} h6 {[%emt 0:00:22]} 11. exf5 {[%emt 0:00:07]} Bxf5 {
[%emt 0:00:02]} 12. f4 {[%emt 0:00:09]} Bg4 {[%emt 0:00:10]} 13. Qc2 {[%emt 0:
00:14]} Nbd7 {[%emt 0:00:07]} 14. fxe5 {[%emt 0:00:05]} Nxe5 {[%emt 0:00:03]}
15. Nf4 {[%emt 0:00:17]} Nxc4 {[%emt 0:00:09]} 16. h3 {[%emt 0:00:34]} Bd7 {
[%emt 0:00:04]} 17. Ne6 {[%emt 0:00:30]} Bxe6 {[%emt 0:00:01]} 18. dxe6 {
[%emt 0:00:01]} c6 {[%emt 0:00:10]} 19. Bxh6 {[%emt 0:00:20]} Ne5 {[%emt 0:00:
14]} 20. Bf4 {[%emt 0:00:05]} Qc8 {[%emt 0:00:04]} 21. Bxe5 {[%emt 0:00:04]}
dxe5 {[%emt 0:00:01]} 22. Qg6 {[%emt 0:00:11]} Qxe6 {[%emt 0:00:09]} 23. Rae1 {
[%emt 0:00:11]} Qf7 {[%emt 0:00:22]} 24. Qxf7+ {[%emt 0:00:01]} Rxf7 {[%emt 0:
00:01]} 25. Rxe5 {[%emt 0:00:02]} Bd6 {[%emt 0:00:03]} 26. Rg5 {[%emt 0:00:01]}
a4 {[%emt 0:00:08]} 27. Ne4 {[%emt 0:00:02]} Nxe4 {[%emt 0:00:04]} 28. Bxe4 {
[%emt 0:00:01]} Rxf1+ 29. Kxf1 {[%emt 0:00:01]} a3 {[%emt 0:00:04]} 30. b3 {
[%emt 0:00:05]} Re8 {[%emt 0:00:02]} 31. Bg6 {[%emt 0:00:04]} Re3 {[%emt 0:00:
05]} 32. Kf2 {[%emt 0:00:03]} Rc3 {[%emt 0:00:04]} 33. Rg4 {[%emt 0:00:02]}
Bc5+ {[%emt 0:00:02]} 34. Ke2 {[%emt 0:00:02]} Be7 {[%emt 0:00:02]} 35. Re4 {
[%emt 0:00:04]} Bd6 {[%emt 0:00:03]} 36. Re8+ {[%emt 0:00:02]} Bf8 {[%emt 0:00:
01]} 37. Re3 {[%emt 0:00:01]} Rc5 {[%emt 0:00:02]} 38. g4 {[%emt 0:00:02]} Rd5
{[%emt 0:00:01]} 39. Bf5 {[%emt 0:00:01]} Rd6 {[%emt 0:00:02]} 40. Rd3 {
[%emt 0:00:03]} Rf6 {[%emt 0:00:02]} 41. Rf3 {[%emt 0:00:01]} g6 {[%emt 0:00:
02]} 42. Bd3 {[%emt 0:00:02]} Re6+ {[%emt 0:00:02]} 43. Kd2 {[%emt 0:00:02]}
Rd6 {[%emt 0:00:01]} 44. Kc2 {[%emt 0:00:01]} Kg7 {[%emt 0:00:02]} 45. Bc4 {
[%emt 0:00:01]} Rf6 {[%emt 0:00:02]} 46. Rxf6 {[%emt 0:00:01]} Kxf6 {[%emt 0:
00:01]} 47. h4 {[%emt 0:00:01]} b5 {[%emt 0:00:02]} 48. Bd3 {[%emt 0:00:01]}
Bd6 {[%emt 0:00:02]} 49. h5 {[%emt 0:00:01]} gxh5 {[%emt 0:00:01]} 50. gxh5 {
[%emt 0:00:01]} Kg5 {[%emt 0:00:01]} 51. Be4 {[%emt 0:00:02]} c5 {[%emt 0:00:
01]} 52. Bd3 {[%emt 0:00:01]} b4 {[%emt 0:00:01]} 1/2-1/2

[Event "FIDE Women World Blitz 2021"]
[Site "Warsaw"]
[Date "2021.12.30"]
[Round "15.17"]
[White "Gaponenko, Inna"]
[Black "Balajayeva, Khanim"]
[Result "1-0"]
[ECO "C68"]
[WhiteElo "2339"]
[BlackElo "2369"]
[Annotator "NA"]
[PlyCount "85"]
[EventDate "2021.12.29"]
[EventType "swiss"]
[EventCountry "POL"]
[Tiebreak "Cut1 Buchholz"]
[SourceTitle "playchess.com"]
[Source "ChessBase"]
[SourceQuality "1"]
[TimeControl "180+2"]

1. e4 {[%emt 0:00:00]} e5 {[%emt 0:00:00]} 2. Nf3 {[%emt 0:00:02]} Nc6 {
[%emt 0:00:01]} 3. Bb5 {[%emt 0:00:01]} a6 {[%emt 0:00:00]} 4. Bxc6 {[%emt 0:
00:01]} dxc6 {[%emt 0:00:00]} 5. O-O {[%emt 0:00:02]} Bg4 {[%emt 0:00:01]} 6.
h3 {[%emt 0:00:01]} h5 {[%emt 0:00:01]} 7. d3 {[%emt 0:00:01]} Qf6 {[%emt 0:00:
01]} 8. Nbd2 {[%emt 0:00:01]} Ne7 {[%emt 0:00:05]} 9. Nc4 {[%emt 0:00:04]} Bxf3
{[%emt 0:00:04]} 10. Qxf3 {[%emt 0:00:02]} Qxf3 {[%emt 0:00:00]} 11. gxf3 {
[%emt 0:00:02]} Ng6 {[%emt 0:00:05]} 12. Rd1 {[%emt 0:00:18]} O-O-O {[%emt 0:
00:03]} 13. Be3 {[%emt 0:00:06]} Bd6 {[%emt 0:00:11]} 14. Kf1 {[%emt 0:00:13]}
f6 {[%emt 0:00:02]} 15. c3 {[%emt 0:00:09]} Nf8 {[%emt 0:00:17]} 16. d4 {
[%emt 0:00:07]} exd4 {[%emt 0:00:02]} 17. cxd4 {[%emt 0:00:02]} Ne6 {[%emt 0:
00:08]} 18. e5 {[%emt 0:01:01]} fxe5 {[%emt 0:00:05]} 19. dxe5 {[%emt 0:00:01]}
Be7 {[%emt 0:00:01]} 20. Ke2 {[%emt 0:00:06]} Rdf8 {[%emt 0:00:29]} 21. Rd3 {
[%emt 0:00:48]} Nf4+ {[%emt 0:00:12]} 22. Bxf4 {[%emt 0:00:02]} Rxf4 {[%emt 0:
00:00]} 23. b3 {[%emt 0:00:07]} Re8 {[%emt 0:00:09]} 24. Rad1 {[%emt 0:00:08]}
Rh4 {[%emt 0:00:07]} 25. Re3 {[%emt 0:00:09]} Bc5 {[%emt 0:00:19]} 26. Re4 {
[%emt 0:00:03]} Rxh3 {[%emt 0:00:08]} 27. Rg1 {[%emt 0:00:04]} Rh2 {[%emt 0:00:
02]} 28. Ne3 {[%emt 0:00:01]} Bxe3 {[%emt 0:00:09]} 29. Rxe3 {[%emt 0:00:07]}
Re7 {[%emt 0:00:01]} 30. f4 {[%emt 0:00:02]} Rh4 {[%emt 0:00:04]} 31. Kf3 {
[%emt 0:00:02]} Kd7 {[%emt 0:00:06]} 32. Ke4 {[%emt 0:00:01]} Ke6 {[%emt 0:00:
06]} 33. Rg6+ {[%emt 0:00:02]} Kd7 {[%emt 0:00:06]} 34. Reg3 {[%emt 0:00:01]}
Rh2 {[%emt 0:00:14]} 35. Rxg7 {[%emt 0:00:02]} Rxf2 {[%emt 0:00:01]} 36. Rxe7+
{[%emt 0:00:03]} Kxe7 {[%emt 0:00:00]} 37. Rg7+ {[%emt 0:00:02]} Kf8 {[%emt 0:
00:00]} 38. Rxc7 {[%emt 0:00:02]} Rxa2 {[%emt 0:00:02]} 39. e6 {[%emt 0:00:02]}
h4 {[%emt 0:00:06]} 40. Rh7 {[%emt 0:00:01]} Rb2 {[%emt 0:00:08]} 41. f5 {
[%emt 0:00:03]} Rxb3 {[%emt 0:00:13]} 42. f6 {[%emt 0:00:01]} Rb1 {[%emt 0:00:
06]} 43. Rh8# {[%emt 0:00:02]} 1-0

[Event "FIDE Women World Blitz 2021"]
[Site "Warsaw"]
[Date "2021.12.30"]
[Round "15.18"]
[White "Muetsch, Annmarie"]
[Black "Salimova, Nurgyul"]
[Result "0-1"]
[ECO "B12"]
[WhiteElo "2279"]
[BlackElo "2353"]
[Annotator "NA"]
[PlyCount "66"]
[EventDate "2021.12.29"]
[EventType "swiss"]
[EventCountry "POL"]
[Tiebreak "Cut1 Buchholz"]
[SourceTitle "playchess.com"]
[Source "ChessBase"]
[SourceQuality "1"]
[TimeControl "180+2"]

1. e4 {[%emt 0:00:02]} c6 {[%emt 0:00:00]} 2. Ne2 {[%emt 0:00:05]} d5 {[%emt 0:
00:02]} 3. e5 {[%emt 0:00:01]} c5 {[%emt 0:00:04]} 4. d4 {[%emt 0:00:02]} Nc6 {
[%emt 0:00:07]} 5. c3 {[%emt 0:00:18]} e6 {[%emt 0:00:36]} 6. g3 {[%emt 0:00:
07]} Nge7 {[%emt 0:00:24]} 7. Na3 {[%emt 0:00:15]} Nf5 {[%emt 0:00:07]} 8. Nc2
{[%emt 0:00:02]} b6 {[%emt 0:00:07]} 9. Ne3 Nxe3 {[%emt 0:00:09]} 10. fxe3 {
[%emt 0:00:31]} Ba6 {[%emt 0:00:12]} 11. Bg2 {[%emt 0:00:05]} Be7 {[%emt 0:00:
12]} 12. O-O {[%emt 0:00:05]} O-O {[%emt 0:00:08]} 13. Rf2 {[%emt 0:00:08]} Rc8
{[%emt 0:00:07]} 14. Nf4 {[%emt 0:00:04]} g6 {[%emt 0:00:14]} 15. Bd2 {[%emt 0:
00:07]} Bg5 {[%emt 0:00:07]} 16. Nh3 {[%emt 0:00:08]} Bh6 {[%emt 0:00:02]} 17.
Qf3 {[%emt 0:00:10]} Bg7 {[%emt 0:00:05]} 18. Bf1 {[%emt 0:00:07]} Bxf1 {
[%emt 0:00:03]} 19. Raxf1 {[%emt 0:00:02]} f6 {[%emt 0:00:13]} 20. exf6 {
[%emt 0:00:04]} Rxf6 {[%emt 0:00:05]} 21. Qg4 {[%emt 0:00:01]} Rf5 {[%emt 0:00:
08]} 22. e4 {[%emt 0:00:21]} dxe4 {[%emt 0:00:02]} 23. Qxe4 {[%emt 0:00:01]}
Qd7 {[%emt 0:00:10]} 24. Ng5 {[%emt 0:00:32]} cxd4 {[%emt 0:00:04]} 25. c4 {
[%emt 0:00:07]} Ne5 {[%emt 0:00:09]} 26. b3 {[%emt 0:00:02]} Rcf8 {[%emt 0:00:
05]} 27. Qh4 {[%emt 0:00:07]} h6 {[%emt 0:00:02]} 28. Ne4 {[%emt 0:00:08]} Rxf2
{[%emt 0:00:03]} 29. Rxf2 {[%emt 0:00:02]} Rxf2 {[%emt 0:00:02]} 30. Kxf2 {
[%emt 0:00:01]} g5 {[%emt 0:00:06]} 31. Qh5 {[%emt 0:00:06]} d3 {[%emt 0:00:02]
} 32. h4 {[%emt 0:00:06]} Qd4+ {[%emt 0:00:02]} 33. Be3 {[%emt 0:00:02]} Qxe4 {
[%emt 0:00:04]} 0-1

[Event "FIDE Women World Blitz 2021"]
[Site "Warsaw"]
[Date "2021.12.30"]
[Round "15.19"]
[White "Garifullina, Leya"]
[Black "Zhukova, Natalia"]
[Result "1-0"]
[ECO "C78"]
[WhiteElo "2416"]
[BlackElo "2331"]
[Annotator "NA"]
[PlyCount "125"]
[EventDate "2021.12.29"]
[EventType "swiss"]
[EventCountry "POL"]
[Tiebreak "Cut1 Buchholz"]
[SourceTitle "playchess.com"]
[Source "ChessBase"]
[SourceQuality "1"]
[TimeControl "180+2"]

1. e4 {[%emt 0:00:01]} e5 {[%emt 0:00:01]} 2. Nf3 {[%emt 0:00:01]} Nc6 {
[%emt 0:00:00]} 3. Bb5 {[%emt 0:00:02]} a6 {[%emt 0:00:01]} 4. Ba4 {[%emt 0:00:
01]} Nf6 {[%emt 0:00:02]} 5. O-O {[%emt 0:00:02]} b5 {[%emt 0:00:01]} 6. Bb3 {
[%emt 0:00:01]} Bc5 {[%emt 0:00:02]} 7. c3 {[%emt 0:00:03]} d6 {[%emt 0:00:01]}
8. d4 {[%emt 0:00:05]} Bb6 {[%emt 0:00:01]} 9. Bg5 {[%emt 0:00:21]} h6 {
[%emt 0:00:04]} 10. Bh4 {[%emt 0:00:19]} Bg4 {[%emt 0:01:00]} 11. Bd5 {[%emt 0:
00:24]} Qd7 {[%emt 0:00:20]} 12. h3 {[%emt 0:00:39]} Bh5 {[%emt 0:00:14]} 13.
Bxf6 {[%emt 0:00:23]} gxf6 {[%emt 0:00:02]} 14. dxe5 {[%emt 0:00:02]} fxe5 {
[%emt 0:00:19]} 15. Nxe5 {[%emt 0:00:13]} Nxe5 {[%emt 0:00:17]} 16. Qxh5 {
[%emt 0:00:04]} c6 {[%emt 0:00:01]} 17. Bb3 {[%emt 0:00:02]} O-O-O {[%emt 0:00:
06]} 18. a4 {[%emt 0:00:06]} Kb7 {[%emt 0:00:02]} 19. axb5 {[%emt 0:00:02]}
axb5 {[%emt 0:00:01]} 20. Nd2 {[%emt 0:00:01]} Rhg8 {[%emt 0:00:04]} 21. Nf3 {
[%emt 0:00:03]} Ng6 {[%emt 0:00:20]} 22. Qxh6 {[%emt 0:00:14]} Rh8 {[%emt 0:00:
10]} 23. Qg5 {[%emt 0:00:03]} Rdg8 {[%emt 0:00:03]} 24. Qf6 {[%emt 0:00:03]}
Rxh3 {[%emt 0:00:25]} 25. Qxf7 {[%emt 0:00:08]} Qxf7 {[%emt 0:00:08]} 26. Bxf7
{[%emt 0:00:01]} Rxf3 {[%emt 0:00:02]} 27. Bxg8 {[%emt 0:00:02]} Rf8 {[%emt 0:
00:02]} 28. Bh7 {[%emt 0:00:02]} Nf4 {[%emt 0:00:01]} 29. Bf5 {[%emt 0:00:01]}
Ne2+ {[%emt 0:00:02]} 30. Kh2 {[%emt 0:00:05]} d5 {[%emt 0:00:02]} 31. g3 {
[%emt 0:00:02]} dxe4 {[%emt 0:00:02]} 32. Bxe4 {[%emt 0:00:01]} Bxf2 {[%emt 0:
00:01]} 33. Kg2 {[%emt 0:00:02]} Nxg3 {[%emt 0:00:02]} 34. Rxf2 {[%emt 0:00:01]
} Rxf2+ {[%emt 0:00:01]} 35. Kxf2 {[%emt 0:00:01]} Nxe4+ {[%emt 0:00:01]} 36.
Ke3 {[%emt 0:00:01]} Nd6 {[%emt 0:00:00]} 37. b3 {[%emt 0:00:04]} Kb6 {[%emt 0:
00:01]} 38. Rh1 {[%emt 0:00:01]} Nb7 {[%emt 0:00:01]} 39. Rh6 {[%emt 0:00:02]}
Nc5 {[%emt 0:00:02]} 40. b4 {[%emt 0:00:01]} Na4 {[%emt 0:00:03]} 41. Kd4 {
[%emt 0:00:02]} Nb2 {[%emt 0:00:02]} 42. Rh8 {[%emt 0:00:03]} Nc4 {[%emt 0:00:
01]} 43. Rb8+ {[%emt 0:00:02]} Kc7 {[%emt 0:00:01]} 44. Rh8 {[%emt 0:00:03]}
Kb6 {[%emt 0:00:00]} 45. Rh2 {[%emt 0:00:06]} Nd6 {[%emt 0:00:01]} 46. Rh5 {
[%emt 0:00:04]} Nc4 {[%emt 0:00:02]} 47. Rc5 {[%emt 0:00:02]} Nd2 {[%emt 0:00:
02]} 48. Kd3 {[%emt 0:00:02]} Nb3 {[%emt 0:00:03]} 49. Rh5 {[%emt 0:00:01]} c5
{[%emt 0:00:03]} 50. Rh6+ {[%emt 0:00:03]} Kb7 {[%emt 0:00:01]} 51. Kc2 {
[%emt 0:00:09]} c4 {[%emt 0:00:03]} 52. Rh1 {[%emt 0:00:05]} Kc6 {[%emt 0:00:
01]} 53. Rd1 {[%emt 0:00:02]} Kb6 {[%emt 0:00:03]} 54. Rb1 {[%emt 0:00:01]} Kc6
{[%emt 0:00:00]} 55. Rxb3 {[%emt 0:00:02]} cxb3+ {[%emt 0:00:02]} 56. Kxb3 {
[%emt 0:00:01]} Kd5 {[%emt 0:00:01]} 57. Kc2 {[%emt 0:00:01]} Ke5 {[%emt 0:00:
10]} 58. Kd2 {[%emt 0:00:01]} Kf4 {[%emt 0:00:06]} 59. Kd3 {[%emt 0:00:02]} Ke5
{[%emt 0:00:01]} 60. c4 {[%emt 0:00:03]} bxc4+ {[%emt 0:00:01]} 61. Kxc4 {
[%emt 0:00:01]} Kd6 {[%emt 0:00:01]} 62. Kb5 {[%emt 0:00:00]} Kc7 {[%emt 0:00:
01]} 63. Ka6 {[%emt 0:00:01]} 1-0